Cogmind - Beta 10.2 *** ADVENTURER MODE // 2020.11.02 @ 03:10:02 // Halloween2020/ForbiddenLore Player: Ms Vella Result: Destroyed by L-41 Fighter with Axe Performance ------------- Evolutions (3) 1500 Regions Visited (7) 1400 Robots Destroyed (70) 350 Value Destroyed (2572) 2572 Prototype IDs (12) 240 Alien Tech Used (0) 0 Bonus (620) 620 TOTAL SCORE: 6682 Bonus ------- High Alert Combat Kills 252 Follower Combat Kills 368 Cogmind --------- Core Integrity 0/700 Matter 10/400 Energy 100/100 System Corruption 0% Temperature Cool (0) Movement Core (600) Ox11 Location -7/Lower Caves Parts ------- > --- POWER (1) -------- (None) > --- PROPULSION (3) --- (None) > --- UTILITY (7) ------ Large Storage Unit Medium Matter Pod Hacking Suite Heart of Steel > --- WEAPON (2) ------- Mini Assault Cannon Mini Assault Cannon > --- INVENTORY (10) --- Improved Heat Sink Large Storage Unit High-capacity Battery (400) Hacking Suite Hacking Suite Hacking Suite System Shield Mini Assault Cannon Improved Datajack Katana Peak State ------------ > --- POWER ------------ Light Nuclear Core > --- PROPULSION ------- (None) > --- UTILITY ---------- Large Storage Unit Large Storage Unit Improved Signal Interpreter Hacking Suite Heart of Steel > --- WEAPON ----------- Mini Assault Cannon Mini Assault Cannon > --- INVENTORY -------- Improved Heat Sink High-capacity Battery Medium Matter Pod Hacking Suite Hacking Suite Hacking Suite System Shield Mini Assault Cannon Improved Datajack Katana [Rating: 46] Favorites ----------- Power Light Nuclear Core Engine Light Angular Momentum Engine Power Core Light Nuclear Core Propulsion Light Treads Treads Light Treads Leg Aluminum Leg Utility Large Storage Unit Device Heart of Steel Storage Large Storage Unit Processor Improved Signal Interpreter Hackware Hacking Suite Weapon Mini Assault Cannon Energy Gun Lightning Gun Energy Cannon EM Pulse Cannon Ballistic Gun Gauss Rifle Ballistic Cannon Mini Assault Cannon Launcher Grenade Launcher Special Melee Weapon Datajack Build | -11 -10 -9 -9 -9 -7 -7 -7 ------- Run | Scr Mat Mat Sto Rec Fac Low Low Slots Evolved 6 | . . 2 . . 4 . . Power . | . . . . . . . . Propulsion 1 | . . . . . 1 . . Utility 5 | . . 2 . . 3 . . Weapon . | . . . . . . . . Parts Attached 78 | 3 4 4 34 . 19 8 6 Power 10 | . . . 4 . 2 2 2 Engine 3 | . . . 3 . . . . Core 7 | . . . 1 . 2 2 2 Reactor . | . . . . . . . . Propulsion 19 | 2 . . 8 . 7 2 . Treads 16 | 2 . . 6 . 7 1 . Leg 3 | . . . 2 . . 1 . Wheel . | . . . . . . . . Hover . | . . . . . . . . Flight . | . . . . . . . . Utility 20 | . 2 2 8 . 5 1 2 Device 12 | . 1 2 5 . 3 . 1 Storage 3 | . 1 . 1 . . . 1 Processor 2 | . . . 2 . . . . Hackware 3 | . . . . . 2 1 . Protection . | . . . . . . . . Artifact . | . . . . . . . . Weapon 29 | 1 2 2 14 . 5 3 2 Energy Gun 12 | 1 1 1 7 . 1 1 . Energy Cannon 3 | . . . 1 . 1 1 . Ballistic Gun 4 | . 1 . 1 . 1 1 . Ballistic Cannon 7 | . . . 3 . 2 . 2 Launcher 2 | . . . 2 . . . . Special Weapon . | . . . . . . . . Impact Weapon . | . . . . . . . . Slashing Weapon . | . . . . . . . . Piercing Weapon . | . . . . . . . . Special Melee Weapon 1 | . . 1 . . . . . Unidentified Prototypes 4 | . . . 2 . 1 . 1 Parts Lost 32 | . 1 10 3 . 4 4 10 Power 6 | . . 1 . . 1 1 3 Propulsion 8 | . . 2 . . 2 1 3 Utility 7 | . . 3 . . 1 1 2 Weapon 11 | . 1 4 3 . . 1 2 Highest Loss Streak 10 | . 1 10 1 . 3 3 5 Average Slot Usage (%) 75 | . 95 78 86 100 95 99 56 Engine 2 | . 14 8 8 11 1 . . Core 2 | . . . . . 5 6 2 Treads 10 | . 28 17 18 22 20 21 . Device 10 | . 10 25 11 11 16 15 7 Storage 15 | . 14 11 18 22 15 15 15 Processor 7 | . . . 9 11 7 7 7 Hackware 7 | . . . . . 11 14 7 Energy Gun 2 | . 16 6 12 . 3 1 . Energy Cannon 1 | . . . 1 . . 5 . Ballistic Gun 1 | . 10 8 . . . 2 . Ballistic Cannon 10 | . . . 3 22 10 4 14 Naked Turns . | . . . . . . . . Heaviest Build 58 | 13 26 28 50 50 51 58 58 Greatest Support 69 | 40 40 40 46 46 69 60 60 Greatest Overweight (x) 18 | . . 5 5 1 1 1 18 Average Overweight (x) 3 | . . . . 1 . . 11 Largest Inventory Capacity 16 | 6 10 10 16 16 16 16 16 Average Capacity 12 | 6 6 10 14 16 16 16 11 Most Carried 16 | 6 6 9 16 16 16 16 16 Average Carried 12 | 5 4 7 13 16 15 15 10 Final Capacity 16 | 6 10 10 16 16 16 16 10 Final Carried 16 | 5 6 8 16 16 16 16 10 Class Distribution -------------------- 71% | Hacker-Mutant 17% | Mutant 10% | Commander-Mutant Dominant Class ---------------- Mutant | -10/Materials Mutant | -9/Materials Mutant | -9/Storage Commander-Mutant | -9/Recycling Hacker-Mutant | -7/Factory Hacker-Mutant | -7/Lower Caves Hacker-Mutant | -7/Lower Caves Resources | -11 -10 -9 -9 -9 -7 -7 -7 ----------- Run | Scr Mat Mat Sto Rec Fac Low Low Matter Collected 2685 | 199 63 134 441 12 406 235 1195 Remotely 134 | . . 134 . . . . . Salvage Created 2677 | . 200 134 1117 . 428 460 338 Parts 140 | . 12 7 70 . 22 16 13 Haulers Intercepted . | . . . . . . . . Recyclers Shooed . | . . . . . . . . Parts Field Recycled . | . . . . . . . . Retrieved Matter . | . . . . . . . . Parts Self-Destructed 19 | . . . . . . 6 13 Prevented 11 | . . . . . . 11 . Kills | -11 -10 -9 -9 -9 -7 -7 -7 ------- Run | Scr Mat Mat Sto Rec Fac Low Low Combat Hostiles Destroyed 59 | . 6 2 26 . 6 10 9 Guns 30 | . 6 2 20 . . 1 1 Cannons 28 | . . . 6 . 5 9 8 Classes Destroyed 12 | . 3 1 5 . 2 1 . Worker 2 | . . . 2 . . . . Builder 1 | . . . 1 . . . . Recycler 2 | . . . . . 2 . . Operator 2 | . . . 1 . 1 . . Watcher 4 | . 1 1 1 . 1 . . Swarmer 7 | . 3 . 3 . . . 1 Grunt 32 | . 3 . 14 . 2 7 6 Brawler 2 | . . . 1 . . . 1 Duelist 2 | . . . 2 . . . . Sentry 13 | . . 2 6 . 3 1 1 Hunter 2 | . . . . . . 2 . Programmer 1 | . . . . . 1 . . Best Kill Streak 4 | . 4 2 4 . 2 3 4 Combat Bots Only 4 | . 3 1 4 . 2 3 4 Max Kills in Single Turn 2 | . 1 1 2 . 1 1 1 Gunslinging . | . . . . . . . . Exploded . | . . . . . . . . Melee . | . . . . . . . . Uniques/NPCs Destroyed . | . . . . . . . . Combat | -11 -10 -9 -9 -9 -7 -7 -7 -------- Run | Scr Mat Mat Sto Rec Fac Low Low Damage Taken 4974 | . 319 782 1023 25 691 531 1603 Core 1104 | . 45 229 126 . 49 64 591 Absorbed by Shields . | . . . . . . . . Core Remaining (%) 64 | 100 82 . . 11 . . . Volleys Fired 196 | . 20 23 66 1 30 30 26 Largest 2 | . 2 2 2 2 2 2 2 Hottest 112 | . 70 70 112 96 103 111 96 Shots Fired 359 | . 38 32 121 2 60 56 50 Gun 207 | . 38 32 95 . 20 13 9 Cannon 148 | . . . 22 2 40 43 41 Launcher 4 | . . . 4 . . . . Special . | . . . . . . . . Kinetic 169 | . 20 20 10 2 40 30 47 Thermal 122 | . 3 12 107 . . . . Explosive 4 | . . . 4 . . . . Electromagnetic 64 | . 15 . . . 20 26 3 Robot Hit Streak 81 | . 10 12 37 1 16 65 81 Robot Miss Streak 3 | . 2 2 3 1 2 . 3 Penetration Max . | . . . . . . . . Secondary Targets 4 | . 1 . 3 . . . . Max Gunslinging Chain 1 | . 1 . 1 . . . . Shots Hit Robots 287 | . 29 27 95 1 52 49 34 Core Hits 119 | . 10 8 46 1 16 20 18 Critical Hits 2 | . . . . . 2 . . Critical Kills . | . . . . . . . . Critical Parts Destroyed 2 | . . . . . 2 . . Melee Attacks 1 | . . 1 . . . . . Impact . | . . . . . . . . Slashing . | . . . . . . . . Piercing . | . . . . . . . . Sneak Attacks . | . . . . . . . . Combat Hostiles . | . . . . . . . . Follow-up Attacks . | . . . . . . . . Damage Inflicted 5533 | . 295 337 1631 16 1195 1195 864 Guns 2443 | . 295 316 1153 . 305 210 164 Cannons 2952 | . . . 377 . 890 985 700 Explosions 96 | . . . 96 . . . . Melee . | . . . . . . . . Ramming 42 | . . 21 5 16 . . . Kinetic 2736 | . 129 184 142 . 890 596 795 Thermal 1557 | . 37 132 1388 . . . . Explosive 96 | . . . 96 . . . . Electromagnetic 1102 | . 129 . . . 305 599 69 Impact . | . . . . . . . . Slashing . | . . . . . . . . Piercing . | . . . . . . . . Highest Corruption . | . . . . . . . . Average Corruption . | . . . . . . . . Corruption Purged . | . . . . . . . . Overload Shots . | . . . . . . . . Overflow Damage 78 | . . . . . 20 39 19 Projectiles 78 | . . . . . 20 39 19 Explosions . | . . . . . . . . Melee . | . . . . . . . . Knockbacks 21 | . . . 1 . 7 3 10 Impact . | . . . . . . . . Kinetic 20 | . . . 1 . 7 3 9 Secondary 1 | . . . . . . . 1 Self-Inflicted Damage . | . . . . . . . . Shots . | . . . . . . . . Rammed 18 | . . 11 4 2 . . 1 Targets Rammed 19 | . . 11 5 2 . . 1 Kicked . | . . . . . . . . Crushed 1 | . . . 1 . . . . Highest Temperature 147 | . 45 45 75 33 9 42 147 Average Temperature 27 | . 25 16 17 20 6 15 65 Received Heat Transfer 2400 | . 168 492 366 18 240 297 819 Siege Activations . | . . . . . . . . Robots Corrupted 1 | . . . . . 1 . . Combat Hostiles 1 | . . . . . 1 . . Parts Fried 5 | . 1 . . . 1 3 . Impact Corruptions . | . . . . . . . . Robots Melted . | . . . . . . . . Combat Hostiles . | . . . . . . . . Parts Melted 8 | . . . 7 . . . 1 Heat Transferred 3402 | . 111 370 2921 . . . . Parts Sabotaged . | . . . . . . . . Parts Stolen . | . . . . . . . . Parts Stripped . | . . . . . . . . Power Chain Reactions . | . . . . . . . . Missiles Intercepted . | . . . . . . . . Alert | -11 -10 -9 -9 -9 -7 -7 -7 ------- Run | Scr Mat Mat Sto Rec Fac Low Low Peak Influence 1138 | . 178 64 434 405 1138 . . Initial 978 | . . . 4 67 978 . . Average 420 | . 84 23 228 235 1030 . . Maximum Alert Level 4 | . . . 2 2 4 . . Low Security (%) 33 | 100 100 100 29 33 . . . Level 1 36 | . . . 65 61 . . . Level 2 2 | . . . 4 5 . . . Level 3 22 | . . . . . 83 . . Level 4 4 | . . . . . 16 . . Level 5 . | . . . . . . . . High Security . | . . . . . . . . Max Security . | . . . . . . . . Squads Dispatched 16 | . 1 1 9 . 5 . . Investigation 5 | . 1 . 1 . 3 . . Extermination 1 | . . . . . 1 . . Reinforcement 5 | . . 1 3 . 1 . . Assault 2 | . . . 2 . . . . Garrison 3 | . . . 3 . . . . Intercept . | . . . . . . . . Construction Impeded . | . . . . . . . . Haulers Reinforced . | . . . . . . . . Stealth | -11 -10 -9 -9 -9 -7 -7 -7 --------- Run | Scr Mat Mat Sto Rec Fac Low Low Distress Signals 3 | . . 1 2 . . . . Communications Jammed . | . . . . . . . . Distress Signals . | . . . . . . . . Times Spotted 119 | . 9 8 45 14 13 14 16 Peak Tracking Total 8 | . 3 5 8 4 3 4 4 Tactical Retreats 13 | . 1 1 2 . . 4 5 Traps | -11 -10 -9 -9 -9 -7 -7 -7 ------- Run | Scr Mat Mat Sto Rec Fac Low Low Traps Triggered 6 | . . . 4 . 2 . . Indirectly . | . . . . . . . . Trap Hack Attempts . | . . . . . . . . Triggered . | . . . . . . . . Disarmed . | . . . . . . . . Reprogrammed . | . . . . . . . . Reused . | . . . . . . . . Traps Extracted . | . . . . . . . . Installed . | . . . . . . . . Triggered . | . . . . . . . . Machines | -11 -10 -9 -9 -9 -7 -7 -7 ---------- Run | Scr Mat Mat Sto Rec Fac Low Low Machines Disabled 6 | . . 1 1 . 4 . . Max in Single Turn 1 | . . 1 1 . . . . Machines Sabotaged . | . . . . . . . . Garrisons Compromised . | . . . . . . . . Overloaded Fab Kills . | . . . . . . . . Fab Network Shutdowns . | . . . . . . . . Hacking | -11 -10 -9 -9 -9 -7 -7 -7 --------- Run | Scr Mat Mat Sto Rec Fac Low Low Machines Accessed 25 | . 2 1 5 11 5 1 . Terminals 13 | . 2 1 4 3 3 . . Fabricators 1 | . . . . . 1 . . Repair Stations 1 | . . . 1 . . . . Recycling Units 8 | . . . . 8 . . . Scanalyzers 1 | . . . . . 1 . . Garrison Access . | . . . . . . . . Total Hacks 59 | . 5 2 23 14 14 1 . Successful 44 | . 4 2 17 11 9 1 . Failed 15 | . 1 . 6 3 5 . . Catastrophic . | . . . . . . . . Database Lockouts . | . . . . . . . . Manual 28 | . 4 1 7 10 6 . . Terminals 37 | . 5 2 12 6 12 . . Fabricators 1 | . . . . . 1 . . Repair Stations 11 | . . . 11 . . . . Recycling Units 8 | . . . . 8 . . . Scanalyzers 1 | . . . . . 1 . . Garrison Access . | . . . . . . . . Terminal Hacks 16 | . 2 1 5 2 5 1 . Record 1 | . 1 . . . . . . Part Schematic 2 | . . . 2 . . . . Prototype ID Bank 4 | . 1 . . 2 1 . . Open Door 2 | . . . 1 . . 1 . Branch Access Points 1 | . . . 1 . . . . Terminal Index 1 | . . . . . 1 . . Fabricator Index 1 | . . . . . 1 . . Alert Level 1 | . . . . . 1 . . Zone Layout 3 | . . 1 1 . 1 . . Fabricator Hacks . | . . . . . . . . Repair Station Hacks 10 | . . . 10 . . . . Scan Component 5 | . . . 5 . . . . Repair 5 | . . . 5 . . . . Recycling Unit Hacks . | . . . . . . . . Scanalyzer . | . . . . . . . . Garrison Access Hacks . | . . . . . . . . Unauthorized Hacks 18 | . 2 1 2 9 4 . . Terminals 9 | . 2 1 2 1 3 . . Botnet 9 | . 2 1 2 1 3 . . Fabricators . | . . . . . . . . Repair Stations . | . . . . . . . . Recycling Units 8 | . . . . 8 . . . Tunnel 8 | . . . . 8 . . . Scanalyzers 1 | . . . . . 1 . . Extract 1 | . . . . . 1 . . Garrison Access . | . . . . . . . . Data Cores Recovered . | . . . . . . . . Used . | . . . . . . . . Hacking Detections 16 | . 2 1 6 3 4 . . Full Trace Events 4 | . 1 . 1 . 2 . . Feedback Events . | . . . . . . . . Feedback Blocked . | . . . . . . . . Robot Schematics Acquired . | . . . . . . . . Robots Built . | . . . . . . . . Matter . | . . . . . . . . Time . | . . . . . . . . Total Robot Build Rating . | . . . . . . . . Part Schematics Acquired 5 | . . . 2 . 3 . . Parts Built . | . . . . . . . . Matter . | . . . . . . . . Time . | . . . . . . . . Total Part Build Rating . | . . . . . . . . Parts Repaired 5 | . . . 5 . . . . Time 197 | . . . 197 . . . . Parts Recycled . | . . . . . . . . Recycled Matter . | . . . . . . . . Retrieved Matter . | . . . . . . . . Retrieved Components . | . . . . . . . . Parts Scanalyzed . | . . . . . . . . Part Schematics Acquired . | . . . . . . . . Parts Damaged . | . . . . . . . . Bothacking | -11 -10 -9 -9 -9 -7 -7 -7 ------------ Run | Scr Mat Mat Sto Rec Fac Low Low Used RIF Installer . | . . . . . . . . Robots Hacked 1 | . . 1 . . . . . Non-combat . | . . . . . . . . Combat 1 | . . 1 . . . . . Robot Hacks Applied 1 | . . 1 . . . . . parse_system 1 | . . 1 . . . . . Relay Couplers Released . | . . . . . . . . Robots Rewired . | . . . . . . . . Allies Hacked . | . . . . . . . . Hacks Repelled . | . . . . . . . . Allies | -11 -10 -9 -9 -9 -7 -7 -7 -------- Run | Scr Mat Mat Sto Rec Fac Low Low Total Allies 12 | . . . 12 . . . . Largest Group 10 | . . . 10 8 7 . . Highest-Rated Group 88 | . . . 88 72 64 . . Highest-Rated Ally 31 | . . . 31 16 16 . . Total Orders . | . . . . . . . . Ally Attacks 222 | . . . 45 139 38 . . Total Damage 2756 | . . . 689 919 1148 . . Kills 52 | . . . 9 35 8 . . Allies Corrupted . | . . . . . . . . Allies Melted . | . . . . . . . . Intel | -11 -10 -9 -9 -9 -7 -7 -7 ------- Run | Scr Mat Mat Sto Rec Fac Low Low Robot Analysis Total . | . . . . . . . . Derelict Logs Recovered 2 | . . . . . . 1 1 Drone Launches . | . . . . . . . . Drone Recoveries . | . . . . . . . . Exploration | -11 -10 -9 -9 -9 -7 -7 -7 ------------- Run | Scr Mat Mat Sto Rec Fac Low Low Turns Passed 12668 | 41 416 231 1670 820 1183 2126 6181 Spaces Moved 4013 | 31 182 73 587 426 568 1225 921 Core 964 | . . 13 56 . . . 895 Treads 2976 | 1 182 60 488 426 568 1225 26 Legs 73 | 30 . . 43 . . . . Wheels . | . . . . . . . . Hover . | . . . . . . . . Flight . | . . . . . . . . Fastest Speed 120 | 120 160 160 150 180 160 160 160 Average Speed 277 | 121 160 184 181 180 162 162 642 Slowest Speed 950 | 160 160 300 300 180 180 180 950 Overloaded Moves . | . . . . . . . . Propulsion Burnouts . | . . . . . . . . Robots Hopped 2 | . . . . . . 2 . Cave-ins Triggered . | . . . . . . . . Exploration Rate (%) 43 | 3 31 9 66 78 16 98 49 Regions Visited 7 Branch Regions 4 Pre-discovered Areas 9 | . . . . 8 . 1 . Known Exits Taken 4 | . . . 1 1 1 1 . Unknown Exits Taken 3 | 1 1 1 . . . . . Scrap Searched 10 | . . . . . . 9 1 Spaces Dug . | . . . . . . . . Terrain Destroyed 18 | . . . 6 2 2 2 6 Melee . | . . . . . . . . Projectile 12 | . . . . 2 2 2 6 AOE 6 | . . . 6 . . . . Terrain Rammed . | . . . . . . . . Walls Destroyed . | . . . . . . . . Machines Disabled . | . . . . . . . . Actions | -11 -10 -9 -9 -9 -7 -7 -7 --------- Run | Scr Mat Mat Sto Rec Fac Low Low Total 5187 | 34 271 130 1070 476 768 1304 1134 Wait 773 | . 53 13 322 48 129 30 178 Move 4002 | 30 181 72 586 425 567 1220 921 Hop 2 | . . . . . . 2 . Pick Up 64 | . 8 6 33 . 11 6 . Fast Attach 21 | . . . 9 . 8 4 . Attach 39 | 1 3 4 15 . 8 3 5 Detach 5 | . . . 3 . 1 . 1 Swap 18 | 2 1 . 10 . 3 1 1 Drop 46 | 1 5 . 20 . 11 8 1 Fire 196 | . 20 23 66 1 30 30 26 Melee 1 | . . 1 . . . . . Ram 2 | . . 1 . . . . 1 Kick . | . . . . . . . . Crush 17 | . . 10 5 2 . . . Escape Stasis . | . . . . . . . . Rewire 1 | . . . 1 . . . . Trap . | . . . . . . . . Miscellaneous . | . . . . . . . . Route ------- -11/Scrapyard -10/Materials -9/Materials -9/Storage -9/Recycling -7/Factory -7/Lower Caves -7/Lower Caves History --------- Turn | Location | Event 1 | -11/Scrapyard | Discovered new exit (range 3) 42 | -11/Scrapyard | Entered Materials 315 | -10/Materials | Build established: Mutant 383 | -10/Materials | Discovered new exit (range 13) 458 | -10/Materials | Entered another Materials area 458 | -9/Materials | Evolved 2 slots: Utility x2 661 | -9/Materials | Discovered new exit (range 10) 686 | -9/Materials | Core integrity fell below 50% 689 | -9/Materials | Entered Storage 707 | -9/Storage | Lost 10 parts (1p2n3u4w) 928 | -9/Storage | Identified exit to Recycling 1008 | -9/Storage | Met a pair of Derelict thieves 1482 | -9/Storage | Repaired Imp. Treads 1516 | -9/Storage | Repaired Imp. Treads 1568 | -9/Storage | Repaired Imp. Medium Laser 1620 | -9/Storage | Repaired Lgt. Angular Momentum Engine 1653 | -9/Storage | Repaired Imp. Signal Interpreter 1862 | -9/Storage | Garrison activated, responded to threat 1976 | -9/Storage | Core integrity fell below 20% 2297 | -9/Storage | Assisted by bots powering up and referring to "LRC-V3" 2331 | -9/Storage | Used back door to open Recycling access 2359 | -9/Storage | Entered Recycling 2359 | -9/Recycling | Accompanied by 8 allies 2392 | -9/Recycling | Spotter reported a threat 2409 | -9/Recycling | Spotter reported a threat 2409 | -9/Recycling | Spotter reported a threat 2410 | -9/Recycling | Spotter reported a threat 2450 | -9/Recycling | Spotter reported a threat 2476 | -9/Recycling | Spotter reported a threat 2483 | -9/Recycling | Spotter reported a threat 2592 | -9/Recycling | Build established: Commander-Mutant 2668 | -9/Recycling | Spotter reported a threat 2676 | -9/Recycling | Spotter reported a threat 2688 | -9/Recycling | Spotter reported a threat 2698 | -9/Recycling | Spotter reported a threat 2731 | -9/Recycling | Spotter reported a threat 2732 | -9/Recycling | Spotter reported a threat 2839 | -9/Recycling | Spotter reported a threat 2850 | -9/Recycling | Spotter reported a threat 2866 | -9/Recycling | Spotter reported a threat 2866 | -9/Recycling | Spotter reported a threat 2867 | -9/Recycling | Spotter reported a threat 2918 | -9/Recycling | Spotter reported a threat 2918 | -9/Recycling | Spotter reported a threat 2930 | -9/Recycling | Spotter reported a threat 2943 | -9/Recycling | Spotter reported a threat 2972 | -9/Recycling | Spotter reported a threat 2972 | -9/Recycling | Spotter reported a threat 3019 | -9/Recycling | Spotter reported a threat 3024 | -9/Recycling | Spotter reported a threat 3025 | -9/Recycling | Spotter reported a threat 3048 | -9/Recycling | Spotter reported a threat 3072 | -9/Recycling | Spotter reported a threat 3111 | -9/Recycling | Discovered new exit (range 12) 3114 | -9/Recycling | Spotter reported a threat 3114 | -9/Recycling | Spotter reported a threat 3129 | -9/Recycling | Identified exit to Factory 3179 | -9/Recycling | Entered Factory 3179 | -7/Factory | Accompanied by 7 allies 3179 | -7/Factory | Evolved 4 slots: Propulsion x1, Utility x3 3673 | -7/Factory | Lost 3 parts (2n1u) 3903 | -7/Factory | Build established: Hacker-Mutant 4193 | -7/Factory | Discovered new exit (range 16) 4242 | -7/Factory | Identified exit to Lower Caves 4362 | -7/Factory | Entered Lower Caves 4843 | -7/Lower Caves | Lost 3 parts (1n1u1w) 5086 | -7/Lower Caves | Attracted the attention of an 0b10 checkpoint 5379 | -7/Lower Caves | Found Prototype Device 6473 | -7/Lower Caves | Discovered new exit (range 12) 6486 | -7/Lower Caves | Identified exit to Lower Caves 6488 | -7/Lower Caves | Entered another Lower Caves area 6515 | -7/Lower Caves | Attracted the attention of an 0b10 checkpoint 6543 | -7/Lower Caves | Learned location of 1 exit from Factory 6558 | -7/Lower Caves | Lost 5 parts (1p2n1u1w) 6580 | -7/Lower Caves | Identified Heart of Steel 6582 | -7/Lower Caves | Core integrity fell below 50% 6610 | -7/Lower Caves | Lost 3 parts (1p1n1w) 9458 | -7/Lower Caves | Encountered a Warlord checkpoint 12646 | -7/Lower Caves | Core integrity fell below 20% 12669 | -7/Lower Caves | Destroyed by L-41 Fighter with Axe Last Messages --------------- 11102_ Acquired 3 matter. 11276_ Acquired 2 matter. 11378_ Acquired 3 matter. 11384_ Acquired 2 matter. 11402_ Acquired 23 matter. 11432_ Acquired 2 matter. 11438_ Acquired 24 matter. 11444_ Acquired 3 matter. 11498_ Acquired 1 matter. 11516_ Acquired 2 matter. 11522_ Acquired 3 matter. 11534_ Acquired 5 matter. 11558_ Acquired 2 matter. 11576_ Acquired 4 matter. 11594_ Acquired 1 matter. 11642_ Acquired 5 matter. 11654_ Acquired 1 matter. 11666_ Acquired 3 matter. 12658_ Slammed into L-41 Fighter. 12662_ Imp. Signal Interpreter destroyed. Map ----- +----------------------------------------------------+ | ????????????????????????????? #??????????????????? | | ####???????????????????????? #??????????????????? | | #?????????????#####????? #??????????????????? | | #????????????## ###### #??????????????????? | | ##???????????# #??????????????????? | | #???????????# #??????????????????? | | #????????????# ####???????????????? | | #??????######## #???????????????? | | ###????# #??????????????????? | | #????# #???????????????????? | | #????# #### ##???????????????????? | | ###### #??# ### #??????? #???????????? | | ### # #??## #??? ##?????? #???????????? | | ### ### ###?## #????#????##? #????#??????? | | ??#### #??## #???????? ## #### ??????? | | ????# ##???####????##?? ?????? | | ????## ### #???????????## ## ?????? | | ###### ##### #???????????# ????? | | ###????####?# ?????? | | ##??## ### ???????? | | #### #### #? ????????? | | #### ##? ???????? | | ### #???????? | | # "###### ## g ?????????? | | # "###### g #????????????????? | | ### "## @ ##????????????????? | | ##?# ## ## #####l #?????????????????? | | ##??## ## #???## #?????????????????? | | ##?#### ## #????### #?????????????????? | | ##?## ### #####??????# #?????????????????? | | ?### ##?# "#????????? #?????????????????? | | ## #??# ###???????? ?????????????????? | | ## #??# #????????? ## ????????????????? | | #### #??####?????????#?### ##???????????????? | | #??# #???????????????????##????????????????? | | ##??## #?????????????????????????????????????? | | ##??#####?????????????????????????????????????? | | ## #??## #???????????????????????????????????????? | | ?# #??# #???###?????????????????????????????????? | | ?# #?## #???# ##????????????????????????????????? | | ## ### #??## #????????????????????????????????? | | ## #### ##????????????????????????????????? | | ### ## #?????????????????????????????????? | | ### #?????????????????????????????????? | | ## #?????????????????????????????????? | | ##?????????????????????????????????? | | ## ##??????????????????????????????????? | | ##### ###???????????????????????????????????? | | #???# #?????????????????????????????????????? | | ##??####?????????????????????????????????????? | +----------------------------------------------------+ Best States ------------- Heat Dissipation 48 Energy Generation 19 Energy Capacity 315 Matter Stores 300 Matter Capacity 400 Sight Range 18 Robot Scan Range 13 Terrain Scan Density 10 Resistance: KI 20 Resistance: TH 20 Resistance: EX 20 Resistance: EM 20 Resistance: I 20 Resistance: S 20 Resistance: P 20 Evasion (%) 40 Recoil Reduction 3 Matter Filtering 30 Offensive Hacking 30 Defensive Hacking 10 Item Schematics ----------------- Lgt. EM Pulse Cannon | -9/Storage | Hacked Imp. ECM Suite | -9/Storage | Hacked Hpw. Tractor Beam | -7/Factory | Extracted Gravmag System | -7/Factory | Extracted Lightning Gun | -7/Factory | Extracted Robot Schematics ------------------ None Fabricated ------------ Nothing Alien Tech Used ----------------- None Achievements -------------- None Challenges ------------ None Game ------ Seed DeepCloakTorch Manual? 0 Play Time 01:13:53 Cumulative 185.4 hours Start 2020.11.02 @ 01:42:16 End 2020.11.02 @ 03:10:02 Sessions 1 Manual Loads 0 Difficulty Adventurer Special Mode Halloween2020/ForbiddenLore Game No. 116 Rogue 0 Adventurer 116 Explorer 0 Win Type - Total 1 Types 1/0/0/0/0/0/0/0/0 Lore% 59 Gallery% 66 Achievement% 51 Wizard Run 0 Options --------- ASCII 0 Keyboard 0 Movement Mouse Keybinds 0 Fullscreen 0 Font 12/Smallcaps Map View 83x54 Tactical HUD 1 Map Filters NONE Filters NONE Steam 1 RUN: a51897df-e51d-4edb-bd3c-4aefd9358381